fUST/lending_fUST_20240927
["ID","MTS","AMOUNT","RATE_DAILY","PERIOD"]
[339273290,1727429441583,-500.0,0.00019178,2]
[339273291,1727429441592,-500.0,0.00019178,2]
[339273292,1727429441601,-500.0,0.00019178,2]
[339273293,1727429441611,-500.0,0.00019178,2]
[339273294,1727429441621,-506.99379314,0.00019178,2]
[339273295,1727429441630,-370.89419129,0.00019178,2]
[339273296,1727429441643,-506.81527205,0.00019178,2]
[339273297,1727429441654,-504.60034359,0.00019178,2]
[339273298,1727429441663,-508.71907042,0.00019178,2]
[339273299,1727429441672,-500.0,0.00019178,2]
[339273300,1727429441682,-500.0,0.00019178,2]
[339273301,1727429441692,-510.55708519,0.00019178,2]
[339273302,1727429441702,-501.83840042,0.00019178,2]
[339273303,1727429441712,-500.0,0.00019178,2]
[339273304,1727429441721,-506.72316098,0.00019178,2]
[339273305,1727429441731,-502.6188564,0.00019178,2]
[339273306,1727429441741,-503.98889023,0.00019178,2]
[339273307,1727429441750,-502.65573626,0.00019178,2]
[339273308,1727429441760,-500.0,0.00019178,2]
[339273309,1727429441769,-500.0,0.00019178,2]
[339273310,1727429441778,-500.0,0.00019178,2]
[339273311,1727429441787,-500.0,0.00019178,2]
[339273312,1727429441798,-569.48,0.00019178,2]
[339273313,1727429441807,-500.0,0.00019178,2]
[339273314,1727429441817,-500.0,0.00019178,2]
[339273315,1727429441828,-506.78731645,0.00019178,2]
[339273316,1727429441838,-500.0,0.00019178,2]
[339273317,1727429441847,-502.2540826,0.00019178,2]
[339273318,1727429441857,-615.01,0.00019178,2]
[339273319,1727429441866,-510.19479574,0.00019178,2]
[339273320,1727429441876,-500.0,0.00019178,2]
[339273321,1727429441887,-517.85197249,0.00019178,2]
[339273322,1727429441897,-193.19890639,0.00019178,2]
[339273323,1727429441907,-506.82329208,0.00019178,2]
[339273324,1727429441916,-502.42677139,0.00019178,2]
[339273325,1727429441925,-500.0,0.00019178,2]
[339273326,1727429441935,-502.60955855,0.00019178,2]
[339273327,1727429441944,-502.46784363,0.00019178,2]
[339273328,1727429441953,-500.0,0.00019178,2]
[339273329,1727429441962,-502.24952686,0.00019178,2]
[339273330,1727429441972,-500.0,0.00019178,2]
[339273331,1727429441982,-500.0,0.00019178,2]
[339273332,1727429441990,-500.0,0.00019178,2]
[339273333,1727429442000,-500.0,0.00019178,2]
[339273334,1727429442010,-500.0,0.00019178,2]
[339273335,1727429442021,-491.48,0.00019178,2]
[339273336,1727429442032,-500.0,0.00019178,2]
[339273337,1727429442043,-500.0,0.00019178,2]
[339273338,1727429442054,-506.37681654,0.00019178,2]
[339273339,1727429442063,-501.66673427,0.00019178,2]
[339273340,1727429442072,-500.0,0.00019178,2]
[339273341,1727429442081,-509.78686755,0.00019178,2]
[339273342,1727429442090,-500.0,0.00019178,2]
[339273343,1727429442099,-627.73,0.00019178,2]
[339273344,1727429442110,-500.0,0.00019178,2]
[339273345,1727429442120,-500.0,0.00019178,2]
[339273346,1727429442130,-500.0,0.00019178,2]
[339273347,1727429442141,-500.0,0.00019178,2]
[339273348,1727429442151,-500.0,0.00019178,2]
[339273349,1727429442161,-508.7841733,0.00019178,2]
[339273350,1727429442169,-500.0,0.00019178,2]
[339273351,1727429442178,-500.0,0.00019178,2]
[339273352,1727429442188,-500.0,0.00019178,2]
[339273353,1727429442197,-500.0,0.00019178,2]
[339273354,1727429442206,-500.0,0.00019178,2]
[339273355,1727429442216,-500.0,0.00019178,2]
[339273356,1727429442225,-439.57472982,0.00019178,2]
[339273357,1727429442235,-506.23067711,0.00019178,2]
[339273358,1727429442244,-500.0,0.00019178,2]
[339273359,1727429442253,-526.00384797,0.00019178,2]
[339273360,1727429442262,-500.0,0.00019178,2]
[339273361,1727429442272,-500.0,0.00019178,2]
[339273362,1727429442281,-504.58421127,0.00019178,2]
[339273363,1727429442294,-507.72145634,0.00019178,2]
[339273364,1727429442304,-500.0,0.00019178,2]
[339273365,1727429442313,-641.03463898,0.00019178,2]
[339273366,1727429442322,-500.0,0.00019178,2]
[339273367,1727429442332,-500.0,0.00019178,2]
[339273368,1727429442342,-859.67,0.00019178,2]
[339273369,1727429442351,-502.91876284,0.00019178,2]
[339273370,1727429442360,-500.0,0.00019178,2]
[339273371,1727429442372,-500.0,0.00019178,2]
[339273372,1727429442382,-500.0,0.00019178,2]
[339273373,1727429442393,-507.54444342,0.00019178,2]
[339273374,1727429442402,-503.00704642,0.00019178,2]
[339273375,1727429442411,-338.39572649,0.00019178,2]
[339273376,1727429442420,-500.0,0.00019178,2]
[339273377,1727429442429,-500.0,0.00019178,2]
[339273378,1727429442438,-500.0,0.00019178,2]
[339273379,1727429442449,-500.0,0.00019178,2]
[339273380,1727429442458,-500.0,0.00019178,2]
[339273381,1727429442468,-500.0,0.00019178,2]
[339273382,1727429442478,-500.0,0.00019178,2]
[339273383,1727429442487,-500.0,0.00019178,2]
[339273384,1727429442496,-500.0,0.00019178,2]
[339273385,1727429442506,-500.0,0.00019178,2]
[339273386,1727429442518,-500.0,0.00019178,2]
[339273387,1727429442528,-600.38907819,0.00019178,2]
[339273388,1727429442538,-500.0,0.00019178,2]
[339273389,1727429442549,-500.0,0.00019178,2]
[339273390,1727429442559,-500.0,0.00019178,2]
[339273391,1727429442568,-397.29062271,0.00019178,2]
[339273392,1727429442577,-1000.0,0.00019178,2]
[339273393,1727429442587,-500.0,0.00019178,2]
[339273394,1727429442596,-500.0,0.00019178,2]
[339273395,1727429442605,-507.57481586,0.00019178,2]
[339273396,1727429442615,-500.0,0.00019178,2]
[339273397,1727429442624,-194.33136475,0.00019178,2]
[339273398,1727429442634,-500.0,0.00019178,2]
[339273399,1727429442647,-500.0,0.00019178,2]
[339273400,1727429442656,-506.43246892,0.00019178,2]
[339273401,1727429442666,-4751.17274609,0.00019178,2]
[339273402,1727429442676,-500.0,0.00019178,2]
[339273403,1727429442685,-500.0,0.00019178,2]
[339273404,1727429442694,-500.0,0.00019178,2]
[339273405,1727429442703,-500.0,0.00019178,2]
[339273406,1727429442713,-220.63047378,0.00019178,2]
[339273407,1727429442722,-512.31092145,0.00019178,2]
[339273408,1727429442731,-500.0,0.00019178,2]
[339273409,1727429442740,-500.0,0.00019178,2]
[339273410,1727429442750,-500.0,0.00019178,2]
[339273411,1727429442761,-256.72957192,0.00019178,2]
[339273413,1727429442770,-500.0,0.00019178,2]
[339273414,1727429442780,-500.0,0.00019178,2]
[339273416,1727429442789,-500.0,0.00019178,2]
[339273418,1727429442798,-511.35248528,0.00019178,2]
[339273419,1727429442808,-500.0,0.00019178,2]
[339273420,1727429442818,-500.0,0.00019178,2]
[339273421,1727429442827,-500.0,0.00019178,2]
[339273422,1727429442837,-500.0,0.00019178,2]
[339273424,1727429442846,-500.0,0.00019178,2]
[339273427,1727429442856,-289.05216459,0.00019178,2]
[339273429,1727429442866,-502.58660432,0.00019178,2]
[339273431,1727429442875,-374.04901473,0.00019178,2]
[339273432,1727429442885,-500.0,0.00019178,2]
[339273433,1727429442894,-169.37138884,0.00019178,2]
[339273434,1727429442904,-500.0,0.00019178,2]
[339273435,1727429442913,-500.0,0.00019178,2]
[339273436,1727429442922,-9622.34118005,0.00019178,2]
[339273438,1727429443079,-443.64881995,0.00019178,2]
[339273440,1727429443090,-631.43763261,0.00019178,2]
[339273441,1727429443099,-266.09623341,0.00019178,2]
[339273442,1727429443108,-500.0,0.00019178,2]
[339273443,1727429443118,-36.40840067,0.00019178,2]
[339273444,1727429443139,-481.33745673,0.00019178,2]
[339273445,1727429443152,-503.73732409,0.00019178,2]
[339273446,1727429443162,-1766.32,0.00019178,2]
[339273447,1727429443172,-500.0,0.00019178,2]
[339273448,1727429443182,-500.0,0.00019178,2]
[339273449,1727429443192,-1253.59,0.00019178,2]
[339273450,1727429443201,-161.967575,0.00019178,2]
[339273451,1727429443211,-163.39219,0.00019178,2]
[339273452,1727429443220,-445.4218728,0.00019178,4]
[339273453,1727429443230,-5640.5739736,0.00019178,2]
[339273454,1727429443241,-500.0,0.00019185,2]
[339273455,1727429443250,-513.28879907,0.00019185,2]
[339273456,1727429443259,-507.75875498,0.00019185,2]
[339273457,1727429443270,-1000.0,0.00019344,2]
[339273458,1727429443279,-1000.0,0.00019344,2]
[339273459,1727429443293,-1000.0,0.00019344,2]
[339273460,1727429443302,-1000.0,0.00019344,2]
[339273461,1727429443312,-1000.0,0.00019344,2]
[339273462,1727429443323,-1003.68313061,0.00019344,2]
[339273463,1727429443336,-1000.0,0.00019352,2]
[339273464,1727429443346,-6072.96366598,0.00019413,2]
[339273465,1727429443355,-151.0,0.00019442,2]
[339273466,1727429443368,-151.0,0.00019442,2]
[339273467,1727429443379,-151.0,0.00019442,2]
[339273468,1727429443390,-73087.3938857,0.00019442,3]
[339273470,1727429443400,-54036.8772488,0.00019442,3]
[339273471,1727429443409,-200.0,0.00019452,2]
[339273473,1727429443419,-500.0,0.00019452,2]
[339273475,1727429443428,-500.0,0.00019452,2]
[339273477,1727429443438,-755.58,0.00019452,2]
[339273479,1727429443448,-500.0,0.00019452,2]
[339273480,1727429443458,-523.32495011,0.00019452,2]
[339273481,1727429443467,-569.48,0.00019452,2]
[339273482,1727429443478,-500.0,0.00019452,2]
[339273483,1727429443487,-615.01,0.00019452,2]
[339273484,1727429443497,-500.0,0.00019452,2]
[339273485,1727429443507,-500.0,0.00019452,2]
[339273486,1727429443519,-544.39871563,0.00019452,2]
[339273487,1727429443529,-500.0,0.00019452,2]
[339273488,1727429443540,-523.03780286,0.00019452,2]
[339273489,1727429443550,-627.73,0.00019452,2]
[339273490,1727429443559,-185.3,0.00019452,2]
[339273491,1727429443569,-500.0,0.00019452,2]
[339273492,1727429443579,-500.0,0.00019452,2]
[339273493,1727429443588,-500.0,0.00019452,2]
[339273494,1727429443598,-500.29800051,0.00019452,2]
[339273495,1727429443608,-500.0,0.00019452,2]
[339273496,1727429443617,-639.05364127,0.00019452,2]
[339273497,1727429443626,-500.0,0.00019452,2]
[339273498,1727429443636,-859.67,0.00019452,2]
[339273499,1727429443647,-214.5,0.00019452,2]
[339273500,1727429443658,-500.0,0.00019452,2]
[339273501,1727429443668,-500.0,0.00019452,2]
[339273502,1727429443678,-500.0,0.00019452,2]
[339273503,1727429443687,-500.0,0.00019452,2]
[339273504,1727429443697,-189.93746664,0.00019452,2]
[339273505,1727429443707,-500.0,0.00019452,2]
[339273506,1727429443716,-377.7251503,0.00019452,2]
[339273507,1727429443726,-500.0,0.00019452,2]
[339273508,1727429443735,-1000.0,0.00019452,2]
[339273509,1727429443744,-500.0,0.00019452,2]
[339273510,1727429443753,-500.0,0.00019452,2]
[339273511,1727429443763,-269.27,0.00019452,2]
[339273512,1727429443774,-500.0,0.00019452,2]
[339273513,1727429443783,-510.47063791,0.00019452,2]
[339273514,1727429443793,-500.0,0.00019452,2]
[339273515,1727429443803,-500.0,0.00019452,2]
[339273516,1727429443812,-500.0,0.00019452,2]
[339273517,1727429443822,-10065.99,0.00019452,2]
[339273518,1727429443833,-1766.32,0.00019452,2]
[339273519,1727429443842,-1253.59,0.00019452,2]
[339273520,1727429443853,-151.0,0.00019487,2]
[339273521,1727429443863,-151.0,0.00019487,2]
[339273522,1727429443873,-151.0,0.00019487,2]
[339273523,1727429444004,-108073.754498,0.00019488,3]
[339273524,1727429444015,-200.4530233,0.000195,2]
[339273525,1727429444024,-500.0,0.00019516,2]
[339273526,1727429444034,-153.0,0.00019533,2]
[339273527,1727429444043,-153.0,0.00019533,2]
[339273528,1727429444053,-153.0,0.00019533,2]
[339273529,1727429444062,-153.0,0.00019533,2]
[339273530,1727429444071,-153.0,0.00019533,2]
[339273531,1727429444081,-153.0,0.00019533,2]
[339273532,1727429444091,-153.0,0.00019533,2]
[339273533,1727429444100,-153.0,0.00019533,2]
[339273534,1727429444109,-153.0,0.00019533,2]
[339273535,1727429444119,-153.0,0.00019533,2]
[339273536,1727429444128,-153.0,0.00019534,2]
[339273537,1727429444139,-153.0,0.00019538,2]
[339273538,1727429444148,-153.0,0.00019538,2]
[339273539,1727429444157,-153.0,0.00019538,2]
[339273540,1727429444167,-153.0,0.00019538,2]
[339273541,1727429444176,-153.0,0.00019538,2]
[339273542,1727429444185,-153.0,0.00019538,2]
[339273543,1727429444195,-153.0,0.00019538,2]
[339273544,1727429444204,-153.0,0.00019538,2]
[339273545,1727429444214,-153.0,0.00019538,2]
[339273546,1727429444224,-153.0,0.00019538,2]
[339273547,1727429444233,-153.0,0.00019538,2]
[339273548,1727429444243,-153.0,0.00019542,2]
[339273549,1727429444252,-153.0,0.00019542,2]
[339273550,1727429444262,-153.0,0.00019542,2]
[339273551,1727429444272,-153.0,0.00019542,2]
[339273552,1727429444282,-153.0,0.00019542,2]
[339273553,1727429444295,-153.0,0.00019542,2]
[339273554,1727429444304,-153.0,0.00019542,2]
[339273555,1727429444314,-153.0,0.00019542,2]
[339273556,1727429444323,-153.0,0.00019542,2]
[339273557,1727429444333,-153.0,0.00019542,2]
[339273558,1727429444342,-153.0,0.00019543,2]
[339273559,1727429444351,-153.0,0.00019547,2]
[339273560,1727429444362,-153.0,0.00019547,2]
[339273561,1727429444372,-153.0,0.00019547,2]
[339273562,1727429444382,-153.0,0.00019547,2]
[339273563,1727429444394,-153.0,0.00019547,2]
[339273564,1727429444404,-153.0,0.00019547,2]
[339273565,1727429444414,-153.0,0.00019547,2]
[339273566,1727429444423,-153.0,0.00019547,2]
[339273567,1727429444432,-153.0,0.00019547,2]
[339273568,1727429444443,-150.0,0.00019547,2]
[339273569,1727429444453,-153.0,0.00019547,2]
[339273570,1727429444462,-316.42383446,0.00019564,2]
[339273571,1727429444472,-6072.96366598,0.00019677,2]
[339273572,1727429444482,-1000.0,0.00019721,2]
[339273573,1727429444491,-200.0,0.00019726,2]
[339273574,1727429444502,-500.0,0.00019726,2]
[339273575,1727429444513,-500.0,0.00019726,2]
[339273576,1727429444523,-755.58,0.00019726,2]
[339273577,1727429444533,-500.0,0.00019726,2]
[339273578,1727429444543,-569.48,0.00019726,2]
[339273579,1727429444553,-500.0,0.00019726,2]
[339273580,1727429444564,-615.01,0.00019726,2]
[339273581,1727429444574,-500.0,0.00019726,2]
[339273582,1727429444583,-500.0,0.00019726,2]
[339273583,1727429444593,-627.73,0.00019726,2]
[339273584,1727429444602,-273.31,0.00019726,2]
[339273585,1727429444611,-859.67,0.00019726,2]
[339273586,1727429444621,-500.0,0.00019726,2]
[339273587,1727429444632,-500.0,0.00019726,2]
[339273588,1727429444644,-500.0,0.00019726,2]
[339273589,1727429444654,-500.0,0.00019726,2]
[339273590,1727429444663,-789.87979194,0.00019726,2]
[339273591,1727429444673,-344.71093875,0.00019726,2]
[339273592,1727429444682,-500.0,0.00019726,2]
[339273593,1727429444692,-500.0,0.00019726,2]
[339273594,1727429444701,-546.54745318,0.00019726,2]
[339273595,1727429444711,-10065.99,0.00019726,2]
[339273596,1727429444721,-1766.32,0.00019726,2]
[339273597,1727429444731,-1253.59,0.00019726,2]
[339273598,1727429444742,-2853.32270663,0.00019889,2]
[339273599,1727429444752,-6072.96366598,0.00019906,2]
[339273600,1727429444761,-151.26606185,0.00019922,2]
[339273601,1727429444770,-501.07211232,0.00019973,2]
[339273602,1727429444780,-500.0,0.00019973,2]
[339273603,1727429444789,-500.0,0.00019973,2]
[339273604,1727429444799,-158.015378,0.00019989,2]
[339273605,1727429444809,-151.0,0.00019989,2]
[339273606,1727429444819,-158.015378,0.00019989,2]
[339273607,1727429444828,-151.0,0.00019989,2]
[339273608,1727429444839,-251.873337,0.00019989,2]
[339273609,1727429444848,-251.873337,0.00019989,2]
[339273610,1727429444859,-151.0,0.00019989,2]
[339273611,1727429444869,-151.0,0.00019989,2]
[339273612,1727429444879,-1221.935394,0.00019989,2]
[339273613,1727429444891,-1221.935394,0.00019989,2]
[339273614,1727429444900,-332.266508,0.00019989,2]
[339273615,1727429444909,-332.266508,0.00019989,2]
[339273616,1727429444918,-240.575197,0.00019989,2]
[339273617,1727429444928,-12275.18448806,0.0001999,2]
[339273618,1727429444938,-500.0,0.00019999,2]
[339273619,1727429444949,-500.0,0.00019999,2]
[339273620,1727429444959,-506.95147039,0.00019999,2]
[339273621,1727429444969,-500.0,0.00019999,2]
[339273622,1727429444978,-343.48435352,0.00019999,2]
[339273623,1727429444988,-503.06558109,0.00019999,2]
[339273624,1727429444998,-500.0,0.00019999,2]
[339273625,1727429445007,-500.0,0.00019999,2]
[339273626,1727429445016,-200.0,0.0002,2]
[339273627,1727429445027,-500.0,0.0002,2]
[339273628,1727429445039,-500.0,0.0002,2]
[339273629,1727429445049,-755.58,0.0002,2]
[339273630,1727429445059,-500.0,0.0002,2]
[339273631,1727429445068,-261.82544,0.0002,2]
[339273632,1727429445077,-261.82544,0.0002,2]
[339273633,1727429445087,-154.771498,0.0002,2]
[339273634,1727429445096,-154.771498,0.0002,2]
[339273635,1727429445106,-151.0,0.0002,2]
[339273636,1727429445116,-569.48,0.0002,2]
[339273637,1727429445125,-500.0,0.0002,2]
[339273638,1727429445135,-615.01,0.0002,2]
[339273639,1727429445145,-500.0,0.0002,2]
[339273640,1727429445154,-151.0,0.0002,2]
[339273641,1727429445163,-151.0,0.0002,2]
[339273642,1727429445173,-151.0,0.0002,2]
[339273643,1727429445183,-400.71905992,0.0002,2]
[339273644,1727429445197,-227.01094008,0.0002,2]
[339273645,1727429445207,-486.808503,0.0002,2]
[339273646,1727429445217,-486.808503,0.0002,2]
[339273647,1727429445228,-151.0,0.0002,2]
[339273648,1727429445237,-151.0,0.0002,2]
[339273649,1727429445247,-1.50180891,0.0002,2]
[339273659,1727429447580,2056.6736996,0.00018337,2]
[339273660,1727429494951,413.2172231,0.00018499,2]
[339273677,1727429691013,300.52897,0.0002,120]
[339273697,1727430303132,13126.16,0.000141,2]
[339273704,1727430396154,-3000.0,0.00014428,2]
[339273705,1727430396179,-172.8752591,0.00014504,2]
[339273706,1727430396200,-181.75338536,0.00014831,2]
[339273707,1727430396222,-250.0,0.0001485,2]
[339273708,1727430396243,-201.4890734,0.00014866,2]
[339273709,1727430396268,-250.0,0.0001489,2]
[339273710,1727430396289,-2196.5582081,0.00014893,2]
[339273717,1727430426040,2572.629383,0.0001399,2]
[339273720,1727430433861,856.263256,0.00013914,2]
[339273721,1727430436218,-250.0,0.00014295,2]
[339273722,1727430436243,-122.7260306,0.00014307,2]
[339273723,1727430445131,-177.2739694,0.00014307,2]
[339273724,1727430445155,-300.0,0.00014307,2]
[339273725,1727430445179,-5596.28908046,0.00014308,2]
[339273726,1727430454781,281.0,0.000125,2]
[339273727,1727430455113,281.0,0.0001309,2]
[339273728,1727430455473,281.0,0.0001368,2]
[339273732,1727430550294,2860.0042123,0.00013699,2]
[339273736,1727430553925,190.782346,0.00012635,2]
[339273737,1727430560173,-6755.5608197,0.00014122,2]
[339273738,1727430560195,-363.5067707,0.00014207,2]
[339273739,1727430560218,-281.0,0.0001428,2]
[339273740,1727430560239,-300.0,0.00014306,2]
[339273741,1727430560261,-300.0,0.00014306,2]
[339273742,1727430560283,-424.73864301,0.00014307,2]
[339273743,1727430560305,-500.0,0.00014307,2]
[339273744,1727430560326,-500.0,0.00014307,2]
[339273745,1727430560351,-500.0,0.00014307,2]
[339273746,1727430560373,-500.0,0.00014307,2]
[339273747,1727430560395,-500.0,0.00014307,2]
[339273748,1727430560416,-500.0,0.00014307,2]
[339273749,1727430560582,-500.0,0.00014307,2]
[339273750,1727430560613,-500.0,0.00014307,2]
[339273751,1727430560638,-500.0,0.00014307,2]
[339273752,1727430560661,-503.29427505,0.00014307,2]
[339273753,1727430560684,-500.0,0.00014307,2]
[339273754,1727430560707,-500.0,0.00014307,2]
[339273755,1727430560731,-500.0,0.00014307,2]
[339273756,1727430560754,-500.0,0.00014307,2]
[339273757,1727430560777,-500.0,0.00014307,2]
[339273758,1727430560799,-314.64793497,0.00014307,2]
[339273759,1727430560821,-500.0,0.00014307,2]
[339273760,1727430560844,-500.0,0.00014307,2]
[339273761,1727430560866,-500.0,0.00014307,2]
[339273762,1727430560890,-500.0,0.00014307,2]
[339273763,1727430560910,-248.63914258,0.00014307,2]
[339273764,1727430566174,-251.36085742,0.00014307,2]
[339273765,1727430566201,-500.0,0.00014307,2]
[339273766,1727430566229,-500.0,0.00014307,2]
[339273767,1727430566256,-500.0,0.00014307,2]
[339273768,1727430566280,-500.0,0.00014307,2]
[339273769,1727430566307,-576.05284105,0.00014307,2]
[339273770,1727430566332,-500.0,0.00014307,2]
[339273771,1727430566357,-500.0,0.00014307,2]
[339273772,1727430566384,-500.0,0.00014307,2]
[339273773,1727430566410,-500.0,0.00014307,2]
[339273774,1727430566434,-500.0,0.00014307,2]
[339273775,1727430566458,-500.0,0.00014307,2]
[339273776,1727430566484,-500.0,0.00014307,2]
[339273777,1727430566508,-500.0,0.00014307,2]
[339273778,1727430566532,-500.0,0.00014307,2]
[339273779,1727430566557,-500.0,0.00014307,2]
[339273780,1727430566583,-500.0,0.00014307,2]
[339273781,1727430566609,-500.0,0.00014307,2]
[339273782,1727430566638,-500.0,0.00014307,2]
[339273783,1727430566663,-500.0,0.00014307,2]
[339273784,1727430566689,-500.0,0.00014307,2]
[339273785,1727430566714,-500.0,0.00014307,2]
[339273786,1727430566748,-500.0,0.00014307,2]
[339273787,1727430566773,-500.0,0.00014307,2]
[339273788,1727430566797,-19303.71091954,0.00014308,2]
[339273789,1727430566818,-2572.629383,0.00014675,2]
[339273790,1727430566841,-281.0,0.0001487,2]
[339273791,1727430566864,-514.6878291,0.00014893,2]
[339273792,1727430566893,-250.0,0.00014931,2]
[339273793,1727430566920,-250.0,0.00014972,2]
[339273794,1727430566944,-250.0,0.00015013,2]
[339273795,1727430566969,-343.3115541,0.00015047,2]
[339273796,1727430566992,-250.0,0.00015053,2]
[339273797,1727430567014,-166.666666,0.00015068,2]
[339273798,1727430567037,-250.0,0.00015094,2]
[339273799,1727430567060,-250.0,0.00015135,2]
[339273800,1727430567081,-250.0,0.00015176,2]
[339273801,1727430567104,-250.0,0.00015216,2]
[339273802,1727430567145,-250.0,0.00015257,2]
[339273803,1727430567180,-250.0,0.00015298,2]
[339273804,1727430567209,-250.0,0.00015339,2]
[339273805,1727430567240,-2572.629383,0.0001536,2]
[339273806,1727430567269,-250.0,0.00015379,2]
[339273807,1727430567300,-250.0,0.0001542,2]
[339273808,1727430567329,-166.666666,0.00015421,2]
[339273809,1727430567361,-250.0,0.00015461,2]
[339273810,1727430567389,-250.0,0.00015501,2]
[339273811,1727430567420,-250.0,0.00015542,2]
[339273812,1727430567450,-250.0,0.00015583,2]
[339273813,1727430567478,-500.0,0.000156,2]
[339273814,1727430567504,-501.18527926,0.000156,2]
[339273815,1727430567530,-250.0,0.00015624,2]
[339273816,1727430567558,-420.0,0.00015668,2]
[339273817,1727430567584,-420.0,0.00015736,2]
[339273818,1727430567612,-166.666666,0.00015774,2]
[339273819,1727430567644,-2263.78735,0.00016,2]
[339273820,1727430567672,-166.666666,0.00016126,2]
[339273821,1727430567696,-502.2351556,0.00016148,2]
[339273822,1727430567722,-891.25684165,0.00016321,2]
[339273823,1727430567751,-166.666666,0.00016479,2]
[339273824,1727430567780,-166.666666,0.00016832,2]
[339273825,1727430567807,-500.0,0.00016966,2]
[339273826,1727430567834,-500.0,0.00016966,2]
[339273827,1727430567860,-437.82764575,0.00016966,2]
[339273828,1727430567887,-500.0,0.00016966,2]
[339273829,1727430567912,-186.84562998,0.00016966,2]
[339273830,1727430567936,-500.0,0.00016966,2]
[339273831,1727430567962,-218.8700399,0.00016966,2]
[339273832,1727430567991,-182.23058854,0.00016966,2]
[339273833,1727430568017,-500.0,0.00016966,2]
[339273834,1727430568044,-500.0,0.00016966,2]
[339273835,1727430568070,-211.14886739,0.00016966,2]
[339273836,1727430568097,-500.0,0.00016966,2]
[339273837,1727430568122,-500.0,0.00016966,2]
[339273838,1727430568148,-217.30640887,0.00016966,2]
[339273839,1727430568174,-206.63402172,0.00016967,2]
[339273840,1727430568199,-412.98479576,0.00017033,2]
[339273841,1727430568225,-500.0,0.00017157,2]
[339273842,1727430568254,-587.0,0.0001716,2]
[339273843,1727430568278,-281.0,0.0001724,2]
[339273844,1727430568306,-587.0,0.0001731,2]
[339273845,1727430568335,-823.0,0.00018793,2]
[339273886,1727430632469,-1245.72618425,0.00018929,2]
[339273892,1727430632535,-4827.23748173,0.00018929,2]
[339273894,1727430632545,-233.54449536,0.00019045,2]
[339273895,1727430632554,-233.54449533,0.00019051,2]
[339273896,1727430632564,-233.54449533,0.00019057,2]
[339273897,1727430632573,-233.54449533,0.00019062,2]
[339273898,1727430632582,-233.54449533,0.00019068,2]
[339273900,1727430632592,-599.56011623,0.00019068,2]
[339273950,1727430638799,-400.43988377,0.00019068,2]
[339273951,1727430638809,-274.4004551,0.00019072,2]
[339273952,1727430638906,-16557.72749609,0.00019058,2]
[339273959,1727430640609,-31271.46863593,0.00019058,2]
[339273960,1727430640620,-25.5995449,0.00019072,2]
[339273961,1727430640629,-300.0,0.00019072,2]
[339273962,1727430640639,-2853.32270663,0.00019073,2]
[339273963,1727430640652,-257.18310389,0.00019134,2]
[339273964,1727430640662,-500.0,0.00019134,2]
[339273965,1727430640673,-500.0,0.00019134,2]
[339273966,1727430640682,-500.0,0.00019134,2]
[339273967,1727430640692,-222.58825278,0.00019134,2]
[339273968,1727430640703,-452.89476012,0.00019134,2]
[339273969,1727430640712,-7663.50326169,0.00019135,3]
[339273970,1727430640722,-7623.0714978,0.00019135,3]